Cogmind - Beta 14 @@@ ROGUE MODE // 2025.03.04 @ 16:09:18 Player: DietSnapple Result: Destroyed by G-47 Trooper with Particle Gun Performance ------------- Evolutions (1) 500 Regions Visited (2) 400 Robots Destroyed (44) 220 Value Destroyed (862) 862 Prototype IDs (0) 0 Alien Tech Used (0) 0 Bonus (0) 0 TOTAL SCORE: 1982 Bonus ------- None Cogmind --------- Core Integrity 0/400 Matter 208/300 Energy 100/100 System Corruption 2% Temperature Cool (9) Movement Core (400) Ox7 Location -9/Materials Parts ------- > --- POWER (1) -------- (None) > --- PROPULSION (2) --- (None) > --- UTILITY (4) ------ Large Storage Unit Visual Processing Unit Terrain Scan Processor Transport Network Coupler > --- WEAPON (2) ------- Rocket Launcher > --- INVENTORY (15) --- Small Storage Unit High-capacity Storage Unit Shield Generator Advanced Beam Cannon Assault Rifle Assault Rifle Assault Rifle Rocket Launcher Rocket Launcher Mace Mining Claw Peak State ------------ > --- POWER ------------ Ion Engine > --- PROPULSION ------- Light Treads Light Treads > --- UTILITY ---------- High-capacity Storage Unit Visual Processing Unit Improved Terrain Scanner Transport Network Coupler > --- WEAPON ----------- Assault Rifle Assault Rifle > --- INVENTORY -------- Light Ion Engine Aluminum Leg Aluminum Leg Flight Unit Flight Unit Small Storage Unit Large Storage Unit EM Pulse Gun EM Pulse Gun Assault Rifle Light Cannon Light Cannon Datajack Mining Claw [Rating: 13] Favorites ----------- Power Ion Engine Engine Ion Engine Propulsion Light Treads Treads Light Treads Leg Aluminum Leg Utility Transport Network Coupler Device Improved Terrain Scanner Storage Large Storage Unit Processor Transport Network Coupler Weapon Assault Rifle Ballistic Gun Assault Rifle Ballistic Cannon Light Cannon Launcher Rocket Launcher Impact Weapon Mace Special Melee Weapon Datajack Build | -11 -10 -9 ------- Run | Yrd Mat Mat Slots Evolved 2 | . . 2 Power . | . . . Propulsion . | . . . Utility 2 | . . 2 Weapon . | . . . Parts Attached 27 | 7 3 17 Power 3 | 1 . 2 Engine 3 | 1 . 2 Core . | . . . Reactor . | . . . Propulsion 5 | 2 . 3 Treads 3 | 2 . 1 Leg 2 | . . 2 Wheel . | . . . Hover . | . . . Flight . | . . . Utility 9 | 2 3 4 Device 2 | 1 . 1 Storage 4 | 1 2 1 Processor 3 | . 1 2 Hackware . | . . . Protection . | . . . Artifact . | . . . Weapon 10 | 2 . 8 Energy Gun . | . . . Energy Cannon . | . . . Ballistic Gun 3 | 2 . 1 Ballistic Cannon 2 | . . 2 Launcher 3 | . . 3 Special Weapon . | . . . Impact Weapon 1 | . . 1 Slashing Weapon . | . . . Piercing Weapon . | . . . Special Melee Weapon 1 | . . 1 Unidentified Prototypes . | . . . Parts Lost 13 | . . 13 Power 3 | . . 3 Propulsion 5 | . . 5 Utility 1 | . . 1 Weapon 4 | . . 4 Highest Loss Streak 3 | . . 3 To Critical Strikes . | . . . Average Slot Usage (%) 92 | . 100 86 Engine 8 | . 14 3 Treads 20 | . 28 14 Leg 2 | . . 4 Device 6 | . 4 7 Storage 12 | . 14 11 Processor 17 | . 9 24 Ballistic Gun 15 | . 28 5 Ballistic Cannon 4 | . . 8 Launcher 2 | . . 4 Peak Build Rating 13 | 9 9 13 Average Rating 9 | 5 8 11 On Entrance 5 | . 9 8 Naked Turns . | . . . Heaviest Build 50 | 15 49 50 Greatest Support 40 | 40 40 40 Greatest Overweight (x) 7 | . 1 7 Average Overweight (x) . | . . 1 Largest Inventory Capacity 20 | 8 20 20 Average Capacity 15 | 6 15 17 Most Carried 16 | 4 15 16 Average Carried 10 | 3 9 12 Final Capacity 20 | 8 20 15 Final Carried 15 | 4 15 11 Class Distribution -------------------- 100% | Mutant Dominant Class ---------------- Mutant | -10/Materials Mutant | -9/Materials Resources | -11 -10 -9 ----------- Run | Yrd Mat Mat Matter Collected 954 | 300 278 376 Remotely . | . . . Salvage Created 1147 | 76 409 662 Parts 73 | 4 35 34 Haulers Intercepted . | . . . Recyclers Shooed 3 | 1 2 . Parts Field Recycled . | . . . Retrieved Matter . | . . . Parts Self-Destructed . | . . . Prevented . | . . . Kills | -11 -10 -9 ------- Run | Yrd Mat Mat Combat Hostiles Destroyed 30 | . 13 17 Melee 3 | . . 3 Guns 18 | . 13 5 Cannons 5 | . . 5 AOE 1 | . . 1 Classes Destroyed 8 | 2 4 2 Worker 6 | . 3 3 Builder 2 | . . 2 Tunneler 2 | 2 . . Recycler 2 | 1 . 1 Watcher 2 | . 2 . Swarmer 13 | . 9 4 Grunt 13 | . 4 9 Sentry 4 | . . 4 Best Kill Streak 9 | 2 9 6 Combat Bots Only 5 | . 3 5 Max Kills in Single Turn 2 | 1 1 2 Gunslinging . | . . . Exploded 1 | . . 1 Melee 1 | . . 1 Uniques/NPCs Destroyed . | . . . Combat | -11 -10 -9 -------- Run | Yrd Mat Mat Hostile Shots Fired 192 | . 52 140 Missed 50 | . 17 33 Damage Taken 1870 | . 331 1539 Core 462 | . 50 412 Absorbed by Shields . | . . . Core Remaining (%) 90 | 100 80 . Volleys Fired 89 | 5 43 41 Largest 2 | 2 2 2 Hottest 70 | 40 40 70 Shots Fired 160 | 10 86 64 Gun 118 | 10 86 22 Cannon 28 | . . 28 Launcher 14 | . . 14 Special . | . . . Kinetic 146 | 10 86 50 Thermal . | . . . Explosive 14 | . . 14 Electromagnetic . | . . . Robot Hit Streak 9 | 4 6 9 Robot Miss Streak 5 | 2 3 5 Penetration Max . | . . . Secondary Targets 1 | . . 1 Max Gunslinging Chain 1 | . . 1 Shots Hit Robots 115 | 7 47 61 Core Hits 55 | 3 25 27 Critical Kills 1 | . . 1 Critical Parts Destroyed 3 | . . 3 Critical Strikes 5 | . . 5 Blast 1 | . . 1 Smash 4 | . . 4 Melee Attacks 35 | . . 35 Impact 29 | . . 29 Slashing . | . . . Piercing . | . . . Sneak Attacks 6 | . . 6 Combat Hostiles . | . . . Follow-up Attacks . | . . . Damage Inflicted 2211 | 94 593 1524 Guns 817 | 84 593 140 Cannons 269 | . . 269 Explosions 190 | . . 190 Melee 924 | . . 924 Ramming 11 | 10 . 1 Kinetic 1086 | 84 593 409 Thermal . | . . . Explosive 190 | . . 190 Electromagnetic . | . . . Impact 924 | . . 924 Slashing . | . . . Piercing . | . . . Highest Corruption 2 | . . 2 Average Corruption 2 | . . 2 Corruption Purged . | . . . Corruption Blocked . | . . . Effects 12 | . . 12 Message Errors 5 | . . 5 Matter Fused 2 | . . 2 Heat Flow Errors 3 | . . 3 Parts Rejected 1 | . . 1 Data Loss (minor) 1 | . . 1 Overload Shots . | . . . Overflow Damage 231 | . . 231 Projectiles . | . . . Explosions 19 | . . 19 Melee 212 | . . 212 Knockbacks 5 | . . 5 Impact . | . . . Kinetic 3 | . . 3 Secondary 2 | . . 2 Self-Inflicted Damage 144 | . . 144 Shots 4 | . . 4 Rammed 4 | 1 2 1 Targets Rammed 5 | 2 2 1 Kicked . | . . . Crushed 1 | 1 . . Highest Temperature 206 | . . 206 Average Temperature 43 | . . 43 Received Heat Transfer 645 | . 90 555 Siege Activations . | . . . Robots Corrupted 6 | . . 6 Combat Hostiles 3 | . . 3 Parts Fried 8 | . . 8 Impact Corruptions 12 | . . 12 Robots Melted . | . . . Combat Hostiles . | . . . Parts Melted . | . . . Heat Transferred . | . . . Parts Sabotaged . | . . . Parts Stolen . | . . . Parts Stripped . | . . . Power Chain Reactions . | . . . Alert | -11 -10 -9 ------- Run | Yrd Mat Mat Peak Influence 298 | 15 251 298 Initial 9 | . 9 . Average 105 | 5 140 95 Maximum Alert Level 1 | . 1 1 Low Security (%) 81 | 100 72 84 Level 1 18 | . 27 15 Level 2 . | . . . Level 3 . | . . . Level 4 . | . . . Level 5 . | . . . High Security . | . . . Max Security . | . . . Squads Dispatched 1 | . 1 . Investigation . | . . . Extermination . | . . . Reinforcement 1 | . 1 . Assault . | . . . Garrison . | . . . Intercept . | . . . Searches Triggered . | . . . Construction Impeded . | . . . Haulers Reinforced . | . . . Active Scanning Responses . | . . . Cargo Convoy Interrupts . | . . . Stealth | -11 -10 -9 --------- Run | Yrd Mat Mat Distress Signals 4 | . 1 3 Communications Jammed . | . . . Distress Signals . | . . . Times Spotted 49 | . 19 30 Peak Tracking Total 6 | . 4 6 Tactical Retreats 4 | . 2 2 Traps | -11 -10 -9 ------- Run | Yrd Mat Mat Traps Triggered 1 | . . 1 Indirectly . | . . . Trap Hack Attempts . | . . . Triggered . | . . . Disarmed 2 | . . 2 Reprogrammed . | . . . Reused . | . . . Traps Extracted . | . . . Installed . | . . . Triggered . | . . . Machines | -11 -10 -9 ---------- Run | Yrd Mat Mat Machines Disabled 1 | . . 1 Max in Single Turn 1 | . . 1 Machines Repaired . | . . . Machines Dismantled . | . . . Machines Sabotaged . | . . . Overloaded Fab Kills . | . . . Hacking | -11 -10 -9 --------- Run | Yrd Mat Mat Machines Accessed 8 | . 4 4 Terminals 6 | . 3 3 Fabricators . | . . . Repair Stations . | . . . Recycling Units 1 | . 1 . Scanalyzers 1 | . . 1 Garrison Access . | . . . Total Hacks 21 | . 13 8 Successful 17 | . 10 7 Failed 4 | . 3 1 Catastrophic . | . . . Database Lockouts . | . . . Manual 6 | . 5 1 Terminals 17 | . 11 6 Fabricators . | . . . Repair Stations . | . . . Recycling Units 2 | . 2 . Scanalyzers 2 | . . 2 Garrison Access . | . . . Terminal Hacks 13 | . 8 5 Record 2 | . 2 . Part Schematic 1 | . 1 . Emergency Access Points 1 | . 1 . Alert Level 2 | . 1 1 Locate Traps 1 | . . 1 Disarm Traps 1 | . . 1 Security Status 1 | . 1 . Surveillance Status 1 | . . 1 Hauler Manifests 2 | . 1 1 Zone Layout 1 | . 1 . Fabricator Hacks . | . . . Repair Station Hacks . | . . . Recycling Unit Hacks 2 | . 2 . Report Inventory 1 | . 1 . Retrieve Components 1 | . 1 . Scanalyzer 2 | . . 2 Insert Component 1 | . . 1 Analyze 1 | . . 1 Garrison Access Hacks . | . . . Unauthorized Hacks . | . . . Terminals . | . . . Fabricators . | . . . Repair Stations . | . . . Recycling Units . | . . . Scanalyzers . | . . . Garrison Access . | . . . Data Cores Recovered . | . . . Used . | . . . Hacking Detections 2 | . 2 . Full Trace Events . | . . . Feedback Events . | . . . Feedback Blocked . | . . . Robot Schematics Acquired . | . . . Robots Built . | . . . Authchips . | . . . Time . | . . . Total Robot Build Rating . | . . . Part Schematics Acquired 2 | . 1 1 Parts Built . | . . . Authchips . | . . . Time . | . . . Total Part Build Rating . | . . . Parts Repaired . | . . . Time . | . . . Parts Recycled . | . . . Recycled Matter . | . . . Retrieved Matter . | . . . Retrieved Components 7 | . 7 . Parts Scanalyzed 1 | . . 1 Part Schematics Acquired 1 | . . 1 Parts Damaged . | . . . Bothacking | -11 -10 -9 ------------ Run | Yrd Mat Mat Used RIF Installer . | . . . Robots Hacked 1 | . . 1 Non-combat . | . . . Combat 1 | . . 1 Robot Hacks Applied 1 | . . 1 parse_system 1 | . . 1 Relay Couplers Released . | . . . Fabnet Peak Effective % . | . . . Robots Rewired . | . . . Allies Hacked . | . . . Hacks Repelled . | . . . Allies | -11 -10 -9 -------- Run | Yrd Mat Mat Total Allies . | . . . Largest Group . | . . . Highest-Rated Group . | . . . Highest-Rated Ally . | . . . Total Orders . | . . . Ally Attacks . | . . . Total Damage . | . . . Kills . | . . . Allies Corrupted . | . . . Allies Melted . | . . . Intel | -11 -10 -9 ------- Run | Yrd Mat Mat Robot Analysis Total . | . . . Derelict Logs Recovered . | . . . Drone Launches . | . . . Drone Recoveries . | . . . Exploration | -11 -10 -9 ------------- Run | Yrd Mat Mat Turns Passed 3079 | 280 1233 1566 Spaces Moved 1336 | 165 595 576 Core 42 | 14 . 28 Treads 1166 | 151 595 420 Legs 128 | . . 128 Wheels . | . . . Hover . | . . . Flight . | . . . Fastest Speed 50 | 50 160 120 Average Speed 198 | 150 179 231 Slowest Speed 400 | 160 240 400 Overloaded Moves . | . . . Propulsion Burnouts . | . . . Robots Hopped . | . . . Cave-ins Triggered . | . . . Exploration Rate (%) 33 | 8 51 40 Regions Visited 2 Branch Regions . Pre-discovered Areas . | . . . Known Exits Taken . | . . . Unknown Exits Taken 2 | 1 1 . Scrap Searched . | . . . Spaces Dug . | . . . Terrain Destroyed 116 | . . 116 Melee . | . . . Projectile . | . . . AOE 116 | . . 116 Terrain Rammed . | . . . Walls Destroyed . | . . . Machines Disabled . | . . . Actions | -11 -10 -9 --------- Run | Yrd Mat Mat Total 1545 | 182 670 693 Wait 26 | . 19 7 Move 1334 | 164 594 576 Hop . | . . . Pick Up 22 | 4 9 9 Fast Attach 11 | 7 . 4 Attach 10 | . . 10 Detach 2 | . . 2 Swap 6 | . 3 3 Drop 5 | . . 5 Fire 89 | 5 43 41 Melee 35 | . . 35 Ram . | . . . Kick . | . . . Crush 5 | 2 2 1 Escape Stasis . | . . . Rewire . | . . . Trap . | . . . Miscellaneous . | . . . Route ------- -11/Scrapyard -10/Materials (discovered 3 exits: *Mat / [*Min] / [Sub]) -9/Materials (discovered 1 exit: [*Min]) History --------- Turn | Location | Event 26 | -11/Scrapyard | Discovered new exit (range 13) 281 | -11/Scrapyard | Entered Materials 301 | -10/Materials | Build established: Mutant 580 | -10/Materials | Discovered new exit (range 16) 872 | -10/Materials | Discovered new exit (range 12) 1295 | -10/Materials | Discovered new exit (range 15) 1514 | -10/Materials | Entered another Materials area 1514 | -9/Materials | Evolved 2 slots: Utility x2 2446 | -9/Materials | Discovered new exit (range 18) 2578 | -9/Materials | Lost 3 parts (1p1n1w) 2695 | -9/Materials | Core integrity fell below 50% 2954 | -9/Materials | Core integrity fell below 20% 2984 | -9/Materials | Lost 3 parts (2n1w) 3080 | -9/Materials | Destroyed by G-47 Trooper with Particle Gun Last Messages --------------- >>Traps(Disarm) Disarmed 2 Shock Traps. 02820_ Acquired Shield Generator. 02841_ System corrupted: Heat flow error (+234). 02886_ System corrupted: Matter fused (-6). 02895_ Connecting with Repair Station... 02910_ DUM/K/2&KSY8XV|H 02944_ System corrupted: Heat flow error (+130). 02950_ Aluminum Leg destroyed. 02953_ Rocket Launcher destroyed. 02956_ Y-45 Defender destroyed. 02961_ The unstable cave ceiling collapses. 02978_ Acquired 20 matter. 02980_ The unstable cave ceiling collapses. 03016_ System corrupted: Heat flow error (+155). 03070_ Terminal disabled. 03080_ The unstable cave ceiling collapses. Map ----- +----------------------------------------------------+ | ????????????????????????????????? | | ????????????????????????????????? | | ????????????????????????????????? | | ????????????????????????????????? | | ????????????????????????????????? | | ????????????????????????????????? | | ????????????????????????????????? | | ????????????????????????????????? | | ????????????????????????????????? | | ????????????????????????????????? | | ??????????????????[?????????????? | | ???????????????? s ????????????? | | ?????????????# s ????????????? | | ????????????# ! ???????????? | | ????????????# ???????????? | | ????????????# ??????????? | | ???????????## ?#????????? | | ???????????# # ???????? | | ????????????# # ???????? | | ?????????????? # ???????? | | ???????????????# g???????? | | ???????????????# g ######## | | ???????????????? # # | | ?????????????? ???# # | | #######??????? ?### " # | | #??????+ @ T [ # | | #?????????###+### " # | | #?????????????? # # | | #???????????? """ # ####? | | #????#??????# """ # ##???? | | ! #???????a???# """ # #????? | | #####+####### #?#! ?# #????? | | ![%%=| T #?# ?# #????? | | ########*#### #?#?##+#?# #????? | | #?????## #???????????????# #????? | | ##????## #???????????????# #????? | | ##????# #???????????????# #????? | | #????## ##???#####????### ###??? | | ###### ##### #### # #??? | | + T # #??? | | ###### ##### ###### #??? | | ##???#####???## ##???## ##??? | | #????########## ###### # ##?? | | ##?#?#?# [# ## # # # #?? | | ???????# === # # #?? | | ?????#?# === + ##?? | | ?#?????# == #+# # # #??? | | ???????# # ## # #??? | | ???#???######### """ ## # #??? | | ???????????????# "R ########??? | +----------------------------------------------------+ Best States ------------- Heat Dissipation 28 Energy Generation 10 Energy Capacity 250 Matter Stores 300 Matter Capacity 300 Sight Range 18 Terrain Scan Range 16 Terrain Scan Density 85 Evasion (%) 50 Recoil Reduction 2 Item Schematics ----------------- Lgt. Armor Plating | -10/Materials | Hacked Sml. Storage Unit | -9/Materials | Scanalyzed Robot Schematics ------------------ None Fabricated ------------ Nothing Alien Tech Used ----------------- None Achievements -------------- None Challenges ------------ None Game ------ Seed GhostBackupMeganuke Manual? 0 Play Time 00:23:26 Cumulative 3.7 hours Start 2025.03.04 @ 15:44:35 End 2025.03.04 @ 16:09:18 Sessions 1 Manual Loads 0 Difficulty Rogue Special Mode None Game No. 9 Rogue 2 Adventurer 7 Explorer 0 Win Type - Total 0 Types 0/0/0/0/0/0/0/0/0 Lore% 1 Gallery% 7 Achievement% 7 Wizard Run 0 Options --------- Layout 1 ASCII 0 Keyboard 1 Movement Vi Keybinds 0 Fullscreen 1 Font 24/Smallcaps Map View 76x35 Zoom Use 0% Tactical HUD 1 Map Filters NONE Filters NONE Steam 1 RUN: 58b410ff-3d31-41c6-9616-c19bb97c7dcf